[Event "GrandPrix_29.05"]
[Site "Chess.com"]
[Date "2020.05.29"]
[Round "5"]
[White "Grandelicious"]
[Black "sergoy"]
[Result "1-0"]
[WhiteElo "2712"]
[BlackElo "2408"]
[TimeControl "600+2"]
[EndTime "11:33:07 PDT"]
[Termination "Grandelicious won by resignation"]

1. Nf3 {[%clk 0:10:01.9]} 1... Nf6 {[%clk 0:09:57.6]} 2. g3 {[%clk 0:10:02.7]}
2... g6 {[%clk 0:09:58.7]} 3. b3 {[%clk 0:10:00.8]} 3... Bg7 {[%clk 0:09:58]} 4.
Bb2 {[%clk 0:10:02.3]} 4... O-O {[%clk 0:09:58.5]} 5. Bg2 {[%clk 0:10:03.7]}
5... d5 {[%clk 0:09:58.1]} 6. c4 {[%clk 0:10:04.2]} 6... c6 {[%clk 0:09:58.3]}
7. O-O {[%clk 0:10:04.9]} 7... a5 {[%clk 0:09:58.8]} 8. Nc3 {[%clk 0:10:05.3]}
8... d4 {[%clk 0:09:22.4]} 9. Na4 {[%clk 0:09:59.2]} 9... Ne8 {[%clk 0:08:58.8]}
10. e3 {[%clk 0:09:44.7]} 10... e5 {[%clk 0:08:59.7]} 11. exd4 {[%clk 0:09:34]}
11... exd4 {[%clk 0:09:00.8]} 12. Re1 {[%clk 0:09:04.7]} 12... Na6 {[%clk
0:08:58.6]} 13. Ba3 {[%clk 0:08:21.8]} 13... Nb4 {[%clk 0:08:49.8]} 14. Nc5
{[%clk 0:08:05.3]} 14... b6 {[%clk 0:08:35.9]} 15. Bxb4 {[%clk 0:08:05]} 15...
axb4 {[%clk 0:08:37.4]} 16. Nd3 {[%clk 0:08:06.6]} 16... Qd6 {[%clk 0:08:27.8]}
17. Nfe5 {[%clk 0:07:36.5]} 17... Bb7 {[%clk 0:08:08.9]} 18. c5 {[%clk
0:07:35.7]} 18... bxc5 {[%clk 0:08:06.4]} 19. Nc4 {[%clk 0:07:37]} 19... Qc7
{[%clk 0:08:04.1]} 20. Nxc5 {[%clk 0:07:36.2]} 20... Ba6 {[%clk 0:07:58.5]} 21.
Nd3 {[%clk 0:05:49.4]} 21... Bxc4 {[%clk 0:04:11.4]} 22. bxc4 {[%clk 0:05:51.3]}
22... Nd6 {[%clk 0:04:12.2]} 23. Nxb4 {[%clk 0:04:11.1]} 23... Nxc4 {[%clk
0:04:11.1]} 24. Nxc6 {[%clk 0:04:12.4]} 24... Rae8 {[%clk 0:04:09.7]} 25. d3
{[%clk 0:03:39.9]} 25... Ne5 {[%clk 0:04:05.5]} 26. Nxe5 {[%clk 0:03:37.8]}
26... Rxe5 {[%clk 0:04:03]} 27. Rxe5 {[%clk 0:03:35.2]} 27... Bxe5 {[%clk
0:04:04.9]} 28. a4 {[%clk 0:03:36.9]} 28... Qa5 {[%clk 0:04:05.1]} 29. Bc6
{[%clk 0:02:55]} 29... Rd8 {[%clk 0:03:36.3]} 30. Qf3 {[%clk 0:02:27.8]} 30...
Kg7 {[%clk 0:03:35.9]} 31. Kg2 {[%clk 0:02:04.8]} 31... Rd6 {[%clk 0:03:34.2]}
32. Ra2 {[%clk 0:01:32.7]} 32... Rf6 {[%clk 0:03:15]} 33. Qd5 {[%clk 0:01:16.2]}
33... Bc7 {[%clk 0:02:49.6]} 34. Qxa5 {[%clk 0:00:44.8]} 34... Bxa5 {[%clk
0:02:50.2]} 35. Bb5 {[%clk 0:00:45.8]} 35... Re6 {[%clk 0:02:49.5]} 36. Bc4
{[%clk 0:00:40.3]} 36... Re7 {[%clk 0:02:17.5]} 37. Rb2 {[%clk 0:00:37.6]} 37...
Bc3 {[%clk 0:02:15.9]} 38. Rb6 {[%clk 0:00:29]} 38... f5 {[%clk 0:02:05.1]} 39.
h4 {[%clk 0:00:23.7]} 39... h5 {[%clk 0:01:51.9]} 40. Ra6 {[%clk 0:00:24.4]}
40... f4 {[%clk 0:01:39.7]} 41. gxf4 {[%clk 0:00:18.9]} 41... Bd2 {[%clk
0:01:31.5]} 42. Bd5 {[%clk 0:00:20.3]} 42... Bxf4 {[%clk 0:00:43.4]} 43. Be4
{[%clk 0:00:21.5]} 43... Bd2 {[%clk 0:00:44.6]} 44. Rxg6+ {[%clk 0:00:22.1]}
44... Kf8 {[%clk 0:00:45.8]} 45. Ra6 {[%clk 0:00:20.6]} 45... Rf7 {[%clk
0:00:41]} 46. Bg6 {[%clk 0:00:17.7]} 46... Rf4 {[%clk 0:00:34.8]} 47. Bxh5
{[%clk 0:00:18.2]} 47... Rxh4 {[%clk 0:00:35.9]} 48. Bf3 {[%clk 0:00:19.4]}
48... Ke7 {[%clk 0:00:25.5]} 49. a5 {[%clk 0:00:19.6]} 49... Rh8 {[%clk
0:00:23.9]} 50. Ra7+ {[%clk 0:00:20.6]} 50... Kd6 {[%clk 0:00:24.7]} 51. a6
{[%clk 0:00:21.6]} 51... Rg8+ {[%clk 0:00:16.2]} 52. Kf1 {[%clk 0:00:22.3]}
52... Bb4 {[%clk 0:00:13.7]} 53. Rh7 {[%clk 0:00:20.9]} 53... Rf8 {[%clk
0:00:04.1]} 54. a7 {[%clk 0:00:22.1]} 1-0

[Event "GrandPrix_29.05"]
[Site "Chess.com"]
[Date "2020.05.29"]
[Round "5"]
[White "Gordima"]
[Black "francyIM"]
[Result "0-1"]
[WhiteElo "2296"]
[BlackElo "2548"]
[TimeControl "600+2"]
[EndTime "11:33:07 PDT"]
[Termination "francyIM won on time"]

1. d4 {[%clk 0:10:01.9]} 1... Nf6 {[%clk 0:09:57.6]} 2. c4 {[%clk 0:10:01.9]}
2... e6 {[%clk 0:09:58.3]} 3. Nc3 {[%clk 0:10:02]} 3... Bb4 {[%clk 0:09:58.4]}
4. e3 {[%clk 0:09:58.2]} 4... O-O {[%clk 0:09:57]} 5. Bd2 {[%clk 0:09:59]} 5...
d5 {[%clk 0:09:56.8]} 6. Nf3 {[%clk 0:09:58.9]} 6... b6 {[%clk 0:09:57.7]} 7.
cxd5 {[%clk 0:09:59.4]} 7... exd5 {[%clk 0:09:58.5]} 8. Rc1 {[%clk 0:10:00.5]}
8... Bb7 {[%clk 0:09:58.7]} 9. Bd3 {[%clk 0:09:59.4]} 9... Be7 {[%clk
0:09:58.7]} 10. Ne5 {[%clk 0:09:54.6]} 10... c5 {[%clk 0:09:59.5]} 11. O-O
{[%clk 0:09:53.9]} 11... Nc6 {[%clk 0:09:59.6]} 12. Be1 {[%clk 0:09:54.8]} 12...
Bd6 {[%clk 0:09:52.1]} 13. f4 {[%clk 0:09:49]} 13... cxd4 {[%clk 0:09:52.7]} 14.
Nxc6 {[%clk 0:09:07.2]} 14... Bxc6 {[%clk 0:09:54.6]} 15. Ne2 {[%clk 0:09:01.2]}
15... Bd7 {[%clk 0:09:54.8]} 16. Nxd4 {[%clk 0:09:00.7]} 16... Re8 {[%clk
0:09:55.7]} 17. Qf3 {[%clk 0:08:51.8]} 17... Ne4 {[%clk 0:09:52.4]} 18. Rd1
{[%clk 0:08:08.3]} 18... Qe7 {[%clk 0:08:55.9]} 19. Bxe4 {[%clk 0:06:40.3]}
19... Qxe4 {[%clk 0:08:46.9]} 20. Kf2 {[%clk 0:06:22]} 20... Bc5 {[%clk
0:08:37.3]} 21. Qxe4 {[%clk 0:05:57.5]} 21... Rxe4 {[%clk 0:08:39.2]} 22. Bc3
{[%clk 0:05:58.7]} 22... Rae8 {[%clk 0:08:34.3]} 23. Rfe1 {[%clk 0:05:32.3]}
23... a5 {[%clk 0:08:17.8]} 24. b3 {[%clk 0:05:29.3]} 24... h6 {[%clk
0:08:06.1]} 25. g3 {[%clk 0:05:08.8]} 25... Bg4 {[%clk 0:08:00]} 26. Rd3 {[%clk
0:04:54.1]} 26... g5 {[%clk 0:07:50.2]} 27. Bb2 {[%clk 0:04:26.8]} 27... Kh7
{[%clk 0:07:17.5]} 28. Rh1 {[%clk 0:04:09.7]} 28... Bc8 {[%clk 0:06:58.3]} 29.
Re1 {[%clk 0:04:00.5]} 29... Bg4 {[%clk 0:06:06.9]} 30. Rc1 {[%clk 0:02:51.1]}
30... Bc8 {[%clk 0:05:26.9]} 31. Re1 {[%clk 0:02:34.6]} 31... Kg6 {[%clk
0:05:23.5]} 32. Bc3 {[%clk 0:02:26.6]} 32... Bg4 {[%clk 0:04:23.6]} 33. Kg2
{[%clk 0:02:22]} 33... Bc8 {[%clk 0:04:17.2]} 34. Kf3 {[%clk 0:02:17.8]} 34...
h5 {[%clk 0:04:13.5]} 35. fxg5 {[%clk 0:02:11]} 35... Kxg5 {[%clk 0:04:10.1]}
36. Nc2 {[%clk 0:01:45]} 36... Kg6 {[%clk 0:03:57.4]} 37. Bd4 {[%clk 0:01:35.1]}
37... R4e7 {[%clk 0:03:50.2]} 38. Rc3 {[%clk 0:01:22.1]} 38... Rc7 {[%clk
0:03:38]} 39. Bxc5 {[%clk 0:01:14.6]} 39... bxc5 {[%clk 0:03:37.7]} 40. Nd4
{[%clk 0:01:14.6]} 40... Bb7 {[%clk 0:03:30.6]} 41. Kf2 {[%clk 0:01:07]} 41...
Rcc8 {[%clk 0:03:28.1]} 42. Ne2 {[%clk 0:00:53.6]} 42... Kg5 {[%clk 0:02:43.5]}
43. Rec1 {[%clk 0:00:50.6]} 43... c4 {[%clk 0:02:38.2]} 44. bxc4 {[%clk
0:00:49]} 44... dxc4 {[%clk 0:02:36.7]} 45. Rxc4 {[%clk 0:00:50.1]} 45... f5
{[%clk 0:02:27.3]} 46. Rc5 {[%clk 0:00:36.8]} 46... Rcd8 {[%clk 0:01:18.8]} 47.
Nd4 {[%clk 0:00:34.7]} 47... Be4 {[%clk 0:01:17.4]} 48. Rxa5 {[%clk 0:00:29.8]}
48... Rb8 {[%clk 0:01:17.9]} 49. Nb3 {[%clk 0:00:12.5]} 49... Red8 {[%clk
0:01:13.5]} 50. Ke2 {[%clk 0:00:06]} 50... Kg4 {[%clk 0:01:11.4]} 51. Rc7 {[%clk
0:00:05]} 51... Kh3 {[%clk 0:01:08.5]} 52. Rh7 {[%clk 0:00:05.3]} 52... Kxh2
{[%clk 0:01:08.8]} 53. Rxh5+ {[%clk 0:00:05.6]} 53... Kxg3 {[%clk 0:01:09.7]}
54. Rg5+ {[%clk 0:00:06.8]} 54... Kh4 {[%clk 0:01:10.5]} 55. Rg7 {[%clk
0:00:07.9]} 55... Rg8 {[%clk 0:01:11]} 56. Raa7 {[%clk 0:00:06.8]} 56... Rxg7
{[%clk 0:01:10.6]} 57. Rxg7 {[%clk 0:00:08.7]} 57... Ra8 {[%clk 0:01:11.9]} 58.
Nc1 {[%clk 0:00:06.4]} 58... Rc8 {[%clk 0:01:12.9]} 59. Kd1 {[%clk 0:00:05.9]}
59... Rc2 {[%clk 0:01:13.6]} 60. a4 {[%clk 0:00:04.2]} 60... Rc5 {[%clk
0:01:09.9]} 61. Ra7 {[%clk 0:00:03.9]} 61... Kg3 {[%clk 0:01:08.8]} 62. Kd2
{[%clk 0:00:04.2]} 62... Kf3 {[%clk 0:01:07.2]} 63. Nb3 {[%clk 0:00:02.8]} 63...
Rc2+ {[%clk 0:01:07.5]} 64. Kd1 {[%clk 0:00:04.3]} 64... Kxe3 {[%clk 0:01:08.6]}
65. a5 {[%clk 0:00:05.1]} 65... Rc3 {[%clk 0:01:08.4]} 66. Nc1 {[%clk
0:00:04.3]} 66... Bf3+ {[%clk 0:01:08.8]} 0-1

[Event "GrandPrix_29.05"]
[Site "Chess.com"]
[Date "2020.05.29"]
[Round "5"]
[White "Rakhmanov_Aleksandr"]
[Black "GM_Levan_Pantsulaia"]
[Result "1-0"]
[WhiteElo "2608"]
[BlackElo "2524"]
[TimeControl "600+2"]
[EndTime "11:33:12 PDT"]
[Termination "Rakhmanov_Aleksandr won by resignation"]

1. Nf3 {[%clk 0:10:01.9]} 1... Nf6 {[%clk 0:09:56.7]} 2. g3 {[%clk 0:10:02.9]}
2... d5 {[%clk 0:09:52.6]} 3. Bg2 {[%clk 0:09:57.5]} 3... c6 {[%clk 0:09:53.3]}
4. d4 {[%clk 0:09:57.9]} 4... Bf5 {[%clk 0:09:47.1]} 5. c4 {[%clk 0:09:57.8]}
5... e6 {[%clk 0:09:45.9]} 6. Nc3 {[%clk 0:09:58.6]} 6... h6 {[%clk 0:09:38.5]}
7. Qb3 {[%clk 0:09:59.3]} 7... Qb6 {[%clk 0:09:35.5]} 8. c5 {[%clk 0:10:00.7]}
8... Qc7 {[%clk 0:09:34.3]} 9. Bf4 {[%clk 0:10:00.5]} 9... Qc8 {[%clk
0:09:34.2]} 10. Nd2 {[%clk 0:10:01.7]} 10... Nbd7 {[%clk 0:09:11]} 11. e4 {[%clk
0:09:59.6]} 11... dxe4 {[%clk 0:09:11.2]} 12. Bxe4 {[%clk 0:09:52.7]} 12... Nxe4
{[%clk 0:09:03]} 13. Ndxe4 {[%clk 0:09:38]} 13... Bxe4 {[%clk 0:08:02.5]} 14.
Nxe4 {[%clk 0:09:39.9]} 14... Nf6 {[%clk 0:08:04.4]} 15. Nxf6+ {[%clk
0:08:02.9]} 15... gxf6 {[%clk 0:08:06.2]} 16. O-O {[%clk 0:07:58.5]} 16... h5
{[%clk 0:08:02.6]} 17. Rfe1 {[%clk 0:07:33.2]} 17... Qd7 {[%clk 0:07:58.8]} 18.
Rad1 {[%clk 0:07:32.9]} 18... Be7 {[%clk 0:07:48.2]} 19. Qf3 {[%clk 0:06:23.1]}
19... Rd8 {[%clk 0:07:37.3]} 20. Bd6 {[%clk 0:06:09.7]} 20... h4 {[%clk
0:05:56.1]} 21. d5 {[%clk 0:04:06.7]} 21... cxd5 {[%clk 0:05:54.4]} 22. Rxd5
{[%clk 0:04:07.4]} 22... Qc6 {[%clk 0:05:34.8]} 23. b4 {[%clk 0:04:05.4]} 23...
hxg3 {[%clk 0:05:13.9]} 24. hxg3 {[%clk 0:04:00]} 24... Bxd6 {[%clk 0:04:22.8]}
25. b5 {[%clk 0:03:55.7]} 25... Qxb5 {[%clk 0:04:22.5]} 26. Qxf6 {[%clk
0:02:41.5]} 26... Rh7 {[%clk 0:02:45.6]} 27. Rxd6 {[%clk 0:01:23.6]} 27... Rd7
{[%clk 0:01:48.8]} 28. Red1 {[%clk 0:00:09.3]} 28... Qc6 {[%clk 0:01:48.2]} 29.
Rxc6 {[%clk 0:00:10.6]} 29... Rxd1+ {[%clk 0:01:49]} 30. Kg2 {[%clk 0:00:12.2]}
30... bxc6 {[%clk 0:01:50.6]} 31. Qb2 {[%clk 0:00:06.3]} 31... Rd7 {[%clk
0:00:39.9]} 32. Qb8+ {[%clk 0:00:07.1]} 32... Ke7 {[%clk 0:00:40.9]} 33. Qc8
{[%clk 0:00:08.5]} 33... Rh5 {[%clk 0:00:28.5]} 34. Qxc6 {[%clk 0:00:09.8]}
34... Rf5 {[%clk 0:00:28.9]} 35. a4 {[%clk 0:00:08.2]} 35... Rd2 {[%clk
0:00:27.5]} 36. Qb7+ {[%clk 0:00:09.3]} 36... Kf6 {[%clk 0:00:27.4]} 37. c6
{[%clk 0:00:10.7]} 37... Rdxf2+ {[%clk 0:00:19.5]} 38. Kh3 {[%clk 0:00:11.9]}
38... Rh5+ {[%clk 0:00:17.9]} 39. Kg4 {[%clk 0:00:13.2]} 39... Rc5 {[%clk
0:00:18.7]} 40. Qxa7 {[%clk 0:00:08.4]} 40... Rfc2 {[%clk 0:00:19.3]} 41. a5
{[%clk 0:00:08.9]} 41... Rxc6 {[%clk 0:00:15.5]} 42. Qd4+ {[%clk 0:00:10.3]}
42... Kg6 {[%clk 0:00:16.4]} 43. Qd3+ {[%clk 0:00:10]} 43... f5+ {[%clk
0:00:16.7]} 44. Kh3 {[%clk 0:00:11.4]} 44... R2c3 {[%clk 0:00:15]} 45. Qd8
{[%clk 0:00:12]} 45... R6c4 {[%clk 0:00:07.6]} 46. a6 {[%clk 0:00:11.4]} 46...
Ra3 {[%clk 0:00:07.1]} 47. Qg8+ {[%clk 0:00:09.8]} 47... Kh5 {[%clk 0:00:03.5]}
48. Qh7+ {[%clk 0:00:11]} 48... Kg5 {[%clk 0:00:04.6]} 49. Qe7+ {[%clk
0:00:12.4]} 1-0

[Event "GrandPrix_29.05"]
[Site "Chess.com"]
[Date "2020.05.29"]
[Round "5"]
[White "1stSecond"]
[Black "vpantev"]
[Result "0-1"]
[WhiteElo "2547"]
[BlackElo "2739"]
[TimeControl "600+2"]
[EndTime "11:33:18 PDT"]
[Termination "vpantev won by checkmate"]

1. Nf3 {[%clk 0:09:59.4]} 1... Nf6 {[%clk 0:09:59.6]} 2. d4 {[%clk 0:09:54.4]}
2... e6 {[%clk 0:09:59.1]} 3. g3 {[%clk 0:09:54.4]} 3... b5 {[%clk 0:09:59]} 4.
Bg2 {[%clk 0:09:54.6]} 4... Bb7 {[%clk 0:10:00.1]} 5. O-O {[%clk 0:09:50.5]}
5... c5 {[%clk 0:10:00.3]} 6. Bg5 {[%clk 0:09:49.1]} 6... h6 {[%clk 0:09:58.1]}
7. Bxf6 {[%clk 0:09:46.3]} 7... Qxf6 {[%clk 0:09:58.9]} 8. c3 {[%clk 0:09:36]}
8... Qd8 {[%clk 0:09:39.8]} 9. Nbd2 {[%clk 0:08:41.6]} 9... d5 {[%clk
0:09:35.5]} 10. dxc5 {[%clk 0:08:29.3]} 10... Bxc5 {[%clk 0:09:33.4]} 11. Nd4
{[%clk 0:08:29]} 11... Qb6 {[%clk 0:09:19.2]} 12. N2b3 {[%clk 0:08:03.9]} 12...
Nd7 {[%clk 0:08:59.1]} 13. a4 {[%clk 0:07:04.8]} 13... bxa4 {[%clk 0:08:11.5]}
14. Rxa4 {[%clk 0:07:06.7]} 14... O-O {[%clk 0:07:49.2]} 15. Qa1 {[%clk
0:06:47.6]} 15... Be7 {[%clk 0:07:36]} 16. Na5 {[%clk 0:06:34.4]} 16... Bc5
{[%clk 0:07:11.2]} 17. e3 {[%clk 0:06:16.7]} 17... Rfc8 {[%clk 0:06:45.7]} 18.
Rd1 {[%clk 0:06:15.3]} 18... Ne5 {[%clk 0:06:39.9]} 19. Nxb7 {[%clk 0:04:51.2]}
19... Qxb7 {[%clk 0:06:39.6]} 20. c4 {[%clk 0:04:46]} 20... Bxd4 {[%clk
0:06:23.1]} 21. Rxd4 {[%clk 0:04:43.6]} 21... Rab8 {[%clk 0:06:23.1]} 22. cxd5
{[%clk 0:02:46.3]} 22... Qxb2 {[%clk 0:06:21.2]} 23. Qxb2 {[%clk 0:02:47.8]}
23... Rxb2 {[%clk 0:06:21.2]} 24. Rd1 {[%clk 0:02:49.2]} 24... exd5 {[%clk
0:06:11.2]} 25. Bxd5 {[%clk 0:02:40.5]} 25... Rc7 {[%clk 0:06:07.6]} 26. Ra2
{[%clk 0:02:31.5]} 26... Rxa2 {[%clk 0:06:02]} 27. Bxa2 {[%clk 0:02:33.4]} 27...
g5 {[%clk 0:05:58.7]} 28. h3 {[%clk 0:02:21.5]} 28... Kg7 {[%clk 0:05:58.6]} 29.
Kg2 {[%clk 0:02:05.5]} 29... h5 {[%clk 0:05:49.5]} 30. Rd5 {[%clk 0:01:58.8]}
30... Kf6 {[%clk 0:05:46.4]} 31. Rd2 {[%clk 0:01:56.2]} 31... g4 {[%clk
0:05:43.2]} 32. Bb3 {[%clk 0:01:38.1]} 32... Rb7 {[%clk 0:05:27.3]} 33. Bd1
{[%clk 0:01:28.2]} 33... a5 {[%clk 0:04:49.5]} 34. Rd6+ {[%clk 0:01:28.9]} 34...
Ke7 {[%clk 0:04:46.1]} 35. Rd5 {[%clk 0:01:30.1]} 35... f6 {[%clk 0:04:32.6]}
36. Rxa5 {[%clk 0:01:23.7]} 36... Rb1 {[%clk 0:04:32.2]} 37. Rd5 {[%clk
0:01:17.9]} 37... Rb2 {[%clk 0:04:29.6]} 38. hxg4 {[%clk 0:01:13.7]} 38... hxg4
{[%clk 0:04:29.9]} 39. Rd4 {[%clk 0:01:10.6]} 39... f5 {[%clk 0:04:28.8]} 40. e4
{[%clk 0:01:06.9]} 40... Kf6 {[%clk 0:04:20.3]} 41. exf5 {[%clk 0:01:01.4]}
41... Kxf5 {[%clk 0:04:19.7]} 42. Rf4+ {[%clk 0:00:57.5]} 42... Kg5 {[%clk
0:04:19.5]} 43. Re4 {[%clk 0:00:59]} 43... Kf5 {[%clk 0:03:59.7]} 44. Re3 {[%clk
0:00:58.6]} 44... Rd2 {[%clk 0:03:57.7]} 45. Be2 {[%clk 0:00:56.8]} 45... Ra2
{[%clk 0:03:48.9]} 46. Bb5 {[%clk 0:00:55.1]} 46... Rb2 {[%clk 0:03:45.5]} 47.
Ba6 {[%clk 0:00:55.5]} 47... Rb4 {[%clk 0:03:26.4]} 48. Bc8+ {[%clk 0:00:53.1]}
48... Kf6 {[%clk 0:03:26.4]} 49. Rc3 {[%clk 0:00:54]} 49... Rd4 {[%clk 0:03:20]}
50. Kf1 {[%clk 0:00:41.9]} 50... Kg5 {[%clk 0:03:17.9]} 51. Bb7 {[%clk
0:00:30.4]} 51... Rb4 {[%clk 0:03:13.6]} 52. Bd5 {[%clk 0:00:27.6]} 52... Rd4
{[%clk 0:03:10.9]} 53. Bg2 {[%clk 0:00:26.8]} 53... Rb4 {[%clk 0:03:07.5]} 54.
Ke2 {[%clk 0:00:25.9]} 54... Kf5 {[%clk 0:02:59.3]} 55. Rc2 {[%clk 0:00:25.2]}
55... Ra4 {[%clk 0:02:50]} 56. Bd5 {[%clk 0:00:24.1]} 56... Rd4 {[%clk
0:02:45.5]} 57. Ba8 {[%clk 0:00:24.4]} 57... Ra4 {[%clk 0:02:43.1]} 58. Bb7
{[%clk 0:00:25.2]} 58... Rb4 {[%clk 0:02:41.1]} 59. Ba6 {[%clk 0:00:26.2]} 59...
Re4+ {[%clk 0:02:36.7]} 60. Kd2 {[%clk 0:00:27.5]} 60... Rd4+ {[%clk 0:02:34.5]}
61. Kc3 {[%clk 0:00:28.3]} 61... Ra4 {[%clk 0:02:27]} 62. Bb5 {[%clk 0:00:27.7]}
62... Ra1 {[%clk 0:02:18.3]} 63. Re2 {[%clk 0:00:23.7]} 63... Rc1+ {[%clk
0:02:10.5]} 64. Kd4 {[%clk 0:00:18.7]} 64... Rd1+ {[%clk 0:01:55.9]} 65. Kc5
{[%clk 0:00:19.1]} 65... Rc1+ {[%clk 0:01:53.8]} 66. Kd6 {[%clk 0:00:19.8]}
66... Rd1+ {[%clk 0:01:50.8]} 67. Ke7 {[%clk 0:00:19.6]} 67... Rd4 {[%clk
0:01:41.8]} 68. Ba6 {[%clk 0:00:13.6]} 68... Rd7+ {[%clk 0:01:37.9]} 69. Ke8
{[%clk 0:00:14.3]} 69... Ra7 {[%clk 0:01:36.6]} 70. Bc8+ {[%clk 0:00:14.7]}
70... Kf6 {[%clk 0:01:35.8]} 71. Rc2 {[%clk 0:00:13.4]} 71... Re7+ {[%clk
0:01:31.9]} 72. Kf8 {[%clk 0:00:06.8]} 72... Ng6+ {[%clk 0:01:32.8]} 73. Kg8
{[%clk 0:00:08.2]} 73... Rg7# {[%clk 0:01:34]} 0-1

[Event "GrandPrix_29.05"]
[Site "Chess.com"]
[Date "2020.05.29"]
[Round "5"]
[White "Grebnev_A"]
[Black "cassoulet"]
[Result "1-0"]
[WhiteElo "2162"]
[BlackElo "1980"]
[TimeControl "600+2"]
[EndTime "11:33:19 PDT"]
[Termination "Grebnev_A won by resignation"]

1. c4 {[%clk 0:10:01.9]} 1... Nf6 {[%clk 0:10:00.2]} 2. Nc3 {[%clk 0:10:02.2]}
2... e6 {[%clk 0:10:01.2]} 3. e4 {[%clk 0:10:02.9]} 3... d5 {[%clk 0:09:59.3]}
4. e5 {[%clk 0:10:03.2]} 4... Ne4 {[%clk 0:09:55.7]} 5. cxd5 {[%clk 0:09:49.3]}
5... Nxc3 {[%clk 0:09:53]} 6. bxc3 {[%clk 0:09:51.2]} 6... Qxd5 {[%clk
0:09:48.5]} 7. Nf3 {[%clk 0:09:52.2]} 7... c5 {[%clk 0:09:45.9]} 8. Qb3 {[%clk
0:09:40.3]} 8... Nc6 {[%clk 0:09:29.7]} 9. Qxd5 {[%clk 0:09:28.9]} 9... exd5
{[%clk 0:09:31.6]} 10. Bb5 {[%clk 0:09:30.1]} 10... Bd7 {[%clk 0:09:27.2]} 11.
Rb1 {[%clk 0:09:27]} 11... O-O-O {[%clk 0:09:14.7]} 12. O-O {[%clk 0:09:25.5]}
12... h6 {[%clk 0:09:12.1]} 13. d4 {[%clk 0:09:24.2]} 13... g5 {[%clk
0:09:10.7]} 14. Be3 {[%clk 0:09:23.4]} 14... c4 {[%clk 0:09:09.1]} 15. Ne1
{[%clk 0:09:15.5]} 15... Bf5 {[%clk 0:08:46.1]} 16. Rd1 {[%clk 0:09:00.9]} 16...
Be7 {[%clk 0:08:43.3]} 17. Ba4 {[%clk 0:08:27.5]} 17... Rdg8 {[%clk 0:08:29.3]}
18. f4 {[%clk 0:08:23.2]} 18... gxf4 {[%clk 0:08:22]} 19. Bxf4 {[%clk
0:07:37.2]} 19... Nd8 {[%clk 0:08:10.5]} 20. Bc2 {[%clk 0:07:35.5]} 20... Bg4
{[%clk 0:07:52.9]} 21. Rd2 {[%clk 0:07:01.7]} 21... Ne6 {[%clk 0:07:48.1]} 22.
Be3 {[%clk 0:07:02.4]} 22... Rg7 {[%clk 0:07:37.7]} 23. Rdf2 {[%clk 0:06:54.8]}
23... Bh5 {[%clk 0:07:30.4]} 24. g3 {[%clk 0:06:54.2]} 24... Bg5 {[%clk
0:07:06.7]} 25. Ng2 {[%clk 0:06:50.5]} 25... Kd8 {[%clk 0:06:54.9]} 26. Bxg5+
{[%clk 0:06:35.9]} 26... Nxg5 {[%clk 0:06:38.2]} 27. Nf4 {[%clk 0:06:35.9]}
27... Bg4 {[%clk 0:06:39]} 28. Kg2 {[%clk 0:05:26.8]} 28... h5 {[%clk
0:05:52.9]} 29. h3 {[%clk 0:04:31.9]} 29... Bd7 {[%clk 0:03:39.3]} 30. h4 {[%clk
0:04:07.6]} 30... Ne4 {[%clk 0:03:21.7]} 31. Bxe4 {[%clk 0:04:06.8]} 31... dxe4
{[%clk 0:03:23.6]} 32. Re1 {[%clk 0:04:08.4]} 32... Bf5 {[%clk 0:03:08.2]} 33.
Rb2 {[%clk 0:04:00.6]} 33... b6 {[%clk 0:03:00.5]} 34. Re3 {[%clk 0:03:47.6]}
34... Rg4 {[%clk 0:02:58.1]} 35. Rf2 {[%clk 0:03:14]} 35... Bc8 {[%clk
0:01:22.7]} 36. Kh2 {[%clk 0:03:11.8]} 36... Bb7 {[%clk 0:01:10.9]} 37. Nh3
{[%clk 0:03:11.2]} 37... Ke7 {[%clk 0:00:59.3]} 38. Rf6 {[%clk 0:02:58.1]} 38...
Rg6 {[%clk 0:00:32.1]} 39. Rxg6 {[%clk 0:02:49.3]} 39... fxg6 {[%clk 0:00:34]}
40. Nf4 {[%clk 0:02:51]} 40... Rg8 {[%clk 0:00:31.1]} 41. d5 {[%clk 0:02:51.5]}
41... g5 {[%clk 0:00:32.7]} 42. hxg5 {[%clk 0:02:53.3]} 42... Rxg5 {[%clk
0:00:33.9]} 43. Rxe4 {[%clk 0:02:54.8]} 43... b5 {[%clk 0:00:31.2]} 44. Kh3
{[%clk 0:02:53.2]} 44... Rg4 {[%clk 0:00:15.8]} 45. d6+ {[%clk 0:02:29.6]} 45...
Kd8 {[%clk 0:00:10.6]} 46. Ne6+ {[%clk 0:02:14.2]} 46... Ke8 {[%clk 0:00:07]}
47. Nc7+ {[%clk 0:02:05.3]} 47... Kd7 {[%clk 0:00:06.9]} 48. Rxg4 {[%clk
0:02:06.3]} 48... hxg4+ {[%clk 0:00:07.3]} 49. Kxg4 {[%clk 0:02:08.2]} 49... b4
{[%clk 0:00:07.7]} 50. cxb4 {[%clk 0:00:23.9]} 50... c3 {[%clk 0:00:09.6]} 51.
e6+ {[%clk 0:00:25.3]} 51... Kc6 {[%clk 0:00:05.7]} 52. e7 {[%clk 0:00:20.5]}
52... Bc8+ {[%clk 0:00:06]} 53. Kf3 {[%clk 0:00:21.5]} 53... Bd7 {[%clk
0:00:07.9]} 54. Ke2 {[%clk 0:00:18.1]} 54... Kxd6 {[%clk 0:00:09.1]} 55. e8=Q
{[%clk 0:00:19.3]} 55... Bxe8 {[%clk 0:00:10]} 56. Nxe8+ {[%clk 0:00:21.2]}
56... Kd5 {[%clk 0:00:09.3]} 57. Kd3 {[%clk 0:00:21.8]} 57... c2 {[%clk
0:00:10.8]} 58. Kxc2 {[%clk 0:00:23.1]} 58... Kc4 {[%clk 0:00:12.7]} 59. g4
{[%clk 0:00:23.9]} 59... Kxb4 {[%clk 0:00:14.6]} 60. g5 {[%clk 0:00:25.8]} 60...
Kc5 {[%clk 0:00:16.2]} 61. g6 {[%clk 0:00:27.3]} 61... Kb5 {[%clk 0:00:15.9]}
62. g7 {[%clk 0:00:29.2]} 1-0